bitfinex-derivatives/quotes_ETHF0:USTF0_20250103
["timestamp","ask_amount","ask_price","bid_price","bid_amount"]
[1735931706197,0.27617,3622.6,3622.5,6.43077439]
[1735931706397,41.07617,3622.6,3622.4,6.43077439]
[1735931706593,0.27617,3622.6,3622.4,6.43077439]
[1735931706805,1.46216,3622.7,3622.4,6.43077439]
[1735931707009,1.186,3622.7,3622.4,6.43077439]
[1735931707298,1.186,3622.7,3622.5,0.4302395]
[1735931707500,2.35847268,3622.6,3622.5,0.4302395]
[1735931707700,1.186,3622.7,3622.4,6.43077439]
[1735931708101,1.186,3622.7,3622.6,6.43077439]
[1735931708403,1.46216,3622.7,3622.6,6.43077439]
[1735931708707,2.08230268,3623.2,3622.6,6.43077439]
[1735931709004,0.27614,3623.0,3622.6,6.43077439]
[1735931709503,0.27614,3623.0,3622.6,5.14409561]
[1735931709904,1.174,3623.1,3622.6,5.14409561]
[1735931710107,0.27616,3622.8,3622.6,5.14409561]
[1735931710308,0.27615,3622.9,3622.6,5.14409561]
[1735931710806,0.27615,3622.9,3622.5,6.43077439]
[1735931711007,0.27614,3623.0,3622.5,6.70695439]
[1735931711302,0.27613,3623.2,3622.7,0.27616]
[1735931711500,3.48392,3623.3,3622.8,0.27615]
[1735931711696,0.27613,3623.2,3622.9,2.0914]
[1735931711902,0.27613,3623.2,3623.0,0.984]
[1735931712111,3.48392,3623.3,3623.0,0.984]
[1735931712302,0.27612,3623.2,3623.0,0.984]
[1735931713106,2.35838268,3623.8,3623.2,0.27612]
[1735931713307,0.27608,3623.8,3623.5,3.2078]
[1735931713502,1.174,3624.0,3623.6,2.0778]
[1735931713702,1.174,3624.0,3623.7,0.984]
[1735931713703,0.27608,3623.8,3623.7,0.984]
[1735931714006,1.174,3624.0,3623.7,0.984]
[1735931714212,3.53236268,3624.1,3623.7,0.984]
[1735931714408,0.27606,3624.0,3623.7,0.984]
[1735931714911,3.25630268,3624.1,3623.9,3.2078]
[1735931715310,0.27606,3624.0,3623.9,3.2078]
[1735931716406,3.25630268,3624.1,3623.9,3.2078]
[1735931716607,3.53236268,3624.1,3623.9,3.2078]
[1735931716813,2.08230268,3624.1,3623.9,3.2078]
[1735931717011,2.35836268,3624.1,3623.9,3.2078]
[1735931717613,2.08230268,3624.1,3623.7,0.984]
[1735931717811,2.35836268,3624.1,3623.9,3.2078]
[1735931718212,2.08230268,3624.1,3623.9,3.2078]
[1735931718521,0.27606,3624.0,3623.9,3.2078]
[1735931720016,2.08230268,3624.1,3623.9,3.2078]
[1735931720213,0.27606,3624.0,3623.9,3.2078]
[1735931720406,42.88230268,3624.4,3623.9,3.2078]
[1735931720607,3.25630268,3624.4,3623.9,3.2078]
[1735931720810,0.27605,3624.2,3623.9,3.2078]
[1735931721117,0.27606,3624.0,3623.9,3.2078]
[1735931721609,0.27608,3623.8,3623.7,0.984]
[1735931721811,0.2761,3623.5,3623.4,6.43077439]
[1735931722117,3.53240268,3623.5,3623.4,5.96648858]
[1735931722517,44.33240268,3623.5,3623.4,5.96648858]
[1735931722918,0.27617,3622.6,3622.5,3.2078]
[1735931723214,0.27618,3622.5,3622.2,8.56192332]
[1735931723613,1.45018,3622.5,3622.2,8.56192332]
[1735931724510,0.27619,3622.3,3622.2,8.56192332]
[1735931724712,1.0386,3622.8,3622.0,3.2078]
[1735931724713,1.174,3623.1,3622.0,3.2078]
[1735931724915,3.25630268,3623.1,3622.5,3.2078]
[1735931725109,0.27616,3622.7,3622.6,2.0837]
[1735931725314,5.29010268,3622.7,3621.4,3.2078]
[1735931725514,2.08230268,3621.8,3621.4,4.2681]
[1735931725717,3.2078,3622.3,3621.4,6.35040268]
[1735931726023,1.38031,3624.1,3621.4,6.35040268]
[1735931726024,3.25630268,3623.3,3622.0,2.08230268]
[1735931726219,3.25630268,3623.3,3622.6,3.2078]
[1735931726220,0.27616,3622.8,3622.6,3.2078]
[1735931726411,0.27616,3622.8,3622.7,1.0603]
[1735931728619,2.08230268,3623.0,3622.7,4.2681]
[1735931728917,1.174,3622.9,3622.7,4.2681]
[1735931729117,1.174,3623.1,3622.8,1.0892]
[1735931729315,1.174,3623.2,3622.9,1.036]
[1735931729523,1.174,3623.2,3623.1,3.2078]
[1735931730917,3.25630268,3623.6,3623.1,3.48393]
[1735931731120,3.25630268,3623.6,3623.5,3.2078]
[1735931731415,0.27611,3623.4,3623.0,3.2078]
[1735931731621,2.08230268,3623.3,3623.0,3.2078]
[1735931731918,0.27613,3623.1,3623.0,3.2078]
[1735931732122,0.27614,3623.0,3622.9,1.036]
[1735931732324,2.35844268,3623.0,3622.9,4.2438]
[1735931732518,43.15844268,3623.0,3622.9,4.2438]
[1735931732918,2.35844268,3623.0,3622.9,1.036]
[1735931733622,2.08230268,3623.0,3622.7,1.0603]
[1735931733812,0.27615,3622.9,3622.7,1.0603]
[1735931734019,43.15844268,3623.0,3622.7,1.0603]
[1735931734216,0.27615,3622.9,3622.7,1.0603]
[1735931734619,0.27615,3622.8,3622.7,1.0603]
[1735931734923,0.27616,3622.7,3622.6,0.9967]
[1735931735619,40.8,3623.0,3622.6,0.9967]
[1735931735921,1.174,3622.9,3622.8,3.2078]
[1735931736222,43.15845268,3622.9,3622.8,3.2078]
[1735931736519,43.15845268,3622.9,3622.6,0.9967]
[1735931736823,43.15845268,3622.9,3622.3,3.2078]
[1735931736824,0.27617,3622.7,3622.3,3.2078]
[1735931737027,0.27618,3622.6,3622.3,4.2412]
[1735931737219,0.27618,3622.5,3622.3,4.2412]
[1735931737924,42.88230268,3622.9,3622.3,4.2412]
[1735931738224,0.27618,3622.5,3622.3,4.2412]
[1735931738422,0.27618,3622.4,3622.3,4.2412]
[1735931738923,0.27618,3622.4,3622.3,3.2078]
[1735931741317,0.27622,3621.9,3621.8,3.2078]
[1735931741521,1.45122,3621.9,3621.8,3.2078]
[1735931742321,1.175,3621.9,3621.8,3.2078]
[1735931742517,0.69039,3622.8,3621.8,3.2078]
[1735931742723,1.175,3623.1,3622.3,3.48399]
[1735931742927,1.175,3623.1,3622.4,3.37638]
[1735931742928,0.27614,3623.0,3622.4,3.37638]
[1735931743726,0.27614,3623.0,3622.4,3.1002]
[1735931743928,3.25730268,3623.1,3622.4,3.1002]
[1735931744228,0.27614,3622.9,3622.4,3.37637]
[1735931744931,3.25730268,3623.1,3622.4,3.1002]
[1735931745230,0.27615,3622.8,3622.4,3.1002]
[1735931745421,0.27615,3622.8,3622.7,3.2078]
[1735931746125,1.175,3622.9,3622.7,3.2078]
[1735931747427,1.45115,3622.9,3622.7,3.2078]
[1735931747728,1.175,3622.9,3622.7,3.2078]
[1735931748331,2.08230268,3623.4,3622.7,3.2078]
[1735931748528,40.8,3623.3,3623.1,3.2078]
[1735931748722,0.27612,3623.2,3623.1,3.2078]
[1735931748930,40.8,3623.3,3623.1,3.2078]
[1735931749428,41.07611,3623.3,3623.2,2.1651]
[1735931749823,42.25111,3623.3,3623.2,2.1651]
[1735931750130,41.975,3623.3,3623.2,2.1651]
[1735931751629,1.45108,3623.7,3623.2,2.1651]
[1735931751829,0.27607,3623.9,3623.3,1.0314]
[1735931752035,41.975,3623.8,3623.3,1.0314]
[1735931752622,2.08230268,3623.7,3623.3,1.0314]
[1735931752823,2.08230268,3623.4,3623.1,3.2078]
[1735931753027,1.0736,3623.3,3623.1,3.2078]
[1735931753226,0.27609,3623.6,3623.1,3.48392]
[1735931753423,2.08230268,3623.7,3623.2,1.0105]
[1735931753629,0.27609,3623.6,3623.2,1.0105]
[1735931754033,0.2761,3623.5,3623.2,1.0105]
[1735931754333,0.27609,3623.6,3623.2,1.0105]
[1735931755234,2.08230268,3623.7,3623.5,3.2078]
[1735931755634,2.35839268,3623.7,3623.5,3.2078]
[1735931756133,1.45109,3623.6,3623.5,3.2078]
[1735931756331,1.45109,3623.6,3623.5,4.3007]
[1735931756733,1.45109,3623.6,3623.5,3.2078]
[1735931756930,1.175,3623.6,3623.5,3.2078]
[1735931757329,1.45109,3623.6,3623.5,3.2078]
[1735931757530,1.45109,3623.6,3623.3,1.0364]
[1735931757531,1.175,3623.6,3623.3,1.0364]
[1735931757730,1.45109,3623.6,3623.4,0.9995]
[1735931757933,1.175,3623.6,3623.1,3.2078]
[1735931758235,0.2761,3623.5,3623.2,0.42971674]
[1735931758439,1.45109,3623.6,3623.1,3.48393]
[1735931758632,41.0761,3623.5,3623.2,1.0364]
[1735931759028,0.27612,3623.2,3622.9,3.2078]
[1735931759233,3.25730268,3623.4,3623.0,0.42996252]
[1735931759729,40.8,3623.3,3623.1,0.42996252]
[1735931759929,40.8,3623.3,3622.9,3.2078]
[1735931760131,40.8,3623.3,3623.0,0.42989239]
[1735931760326,2.35843268,3623.1,3623.0,0.42989239]
[1735931760530,2.08230268,3623.1,3622.8,1.0364]
[1735931760737,0.27614,3623.0,3622.8,1.0364]
[1735931760937,41.975,3622.9,3622.8,1.0364]
[1735931761639,42.25114,3622.9,3622.8,1.46638056]
[1735931761833,0.27616,3622.7,3622.6,8.56192332]
[1735931762033,2.35846268,3622.7,3622.6,8.56192332]
[1735931762232,2.08230268,3622.7,3622.6,8.56192332]
[1735931762435,2.08230268,3622.7,3622.5,3.2078]
[1735931762830,2.35846268,3622.7,3622.6,0.42996039]
[1735931763336,2.35846268,3622.7,3622.5,3.2078]
[1735931764636,2.08230268,3622.7,3622.5,3.2078]
[1735931764834,0.27617,3622.6,3622.5,3.2078]
[1735931765842,2.08230268,3622.7,3622.5,3.2078]
[1735931766437,0.27617,3622.6,3622.5,3.2078]
[1735931767135,2.08230268,3622.7,3622.5,3.2078]
[1735931767340,41.975,3622.9,3622.5,3.2078]
[1735931767531,0.27616,3622.7,3622.5,3.2078]
[1735931767933,40.8,3622.9,3622.5,3.2078]
[1735931768130,1.1022,3623.2,3622.6,2.0691]
[1735931768442,3.524127,3623.6,3623.1,0.27612]
[1735931768633,1.175,3623.5,3623.4,3.4839]
[1735931770642,1.175,3623.5,3623.4,3.2078]
[1735931771139,40.8,3623.9,3623.4,8.16937818]
[1735931771340,1.169,3623.8,3623.5,1.053]
[1735931771540,0.27608,3623.7,3623.5,1.053]
[1735931772043,1.169,3623.7,3623.5,1.053]
[1735931772539,1.44508,3623.7,3623.5,1.053]
[1735931772842,1.169,3623.7,3623.5,1.053]
[1735931773046,1.169,3623.6,3623.5,1.053]
[1735931774445,1.169,3623.6,3623.5,5.97891963]
[1735931776241,1.44509,3623.6,3623.5,1.053]
[1735931776449,1.169,3623.6,3623.5,1.053]
[1735931776645,1.44509,3623.6,3623.5,1.053]
[1735931777045,1.169,3623.6,3623.5,1.053]
[1735931777546,1.44509,3623.6,3623.5,1.053]
[1735931777847,1.44509,3623.6,3623.4,3.2078]
[1735931779649,1.169,3623.6,3623.4,3.2078]
[1735931779844,1.44509,3623.6,3623.4,3.2078]
[1735931780250,1.169,3623.6,3623.4,3.2078]
[1735931780449,1.44509,3623.6,3623.4,3.2078]
[1735931780853,0.2761,3623.5,3623.4,3.2078]
[1735931781249,1.169,3623.6,3623.4,3.2078]
[1735931782649,1.44509,3623.6,3623.4,3.2078]
[1735931783551,1.169,3623.6,3623.4,3.2078]
[1735931784856,2.35838268,3623.8,3623.4,3.2078]
[1735931785049,1.169,3623.7,3623.4,3.2078]
[1735931785751,40.8,3623.6,3623.4,3.2078]
[1735931785953,0.27608,3623.7,3623.4,3.2078]
[1735931786151,3.13910268,3624.4,3623.4,3.2078]
[1735931786353,0.27605,3624.2,3623.7,0.27608]
[1735931786655,0.27605,3624.1,3623.8,1.0849]
[1735931786847,0.27605,3624.1,3623.9,1.0616]
[1735931787047,0.27605,3624.2,3624.0,1.0078]
[1735931787252,0.27605,3624.1,3624.0,1.0078]
[1735931788455,1.44505,3624.1,3624.0,1.0078]
[1735931789543,0.27605,3624.1,3624.0,1.0078]
[1735931789846,1.44505,3624.1,3624.0,1.0078]
[1735931790164,40.8,3624.3,3624.0,1.0078]
[1735931790454,0.27604,3624.3,3624.2,3.2078]
[1735931791248,1.169,3624.3,3624.2,3.2078]
[1735931791557,1.44504,3624.3,3624.2,3.2078]
[1735931792547,2.50604,3624.3,3624.2,3.2078]
[1735931792955,0.27606,3624.0,3623.9,6.41238113]
[1735931793158,43.15836268,3624.0,3623.9,6.41238113]
[1735931793453,42.88230268,3624.0,3623.7,6.41238113]
[1735931793652,0.27607,3623.8,3623.7,6.41238113]
[1735931794161,42.88230268,3624.0,3623.7,6.41238113]
[1735931794455,1.169,3624.0,3623.7,6.68846113]
[1735931794753,1.169,3624.0,3623.7,6.41238113]
[1735931794951,1.169,3624.0,3623.6,3.48389]
[1735931795660,1.169,3624.0,3623.6,3.2078]
[1735931795959,1.169,3624.5,3623.7,6.97896878]
[1735931796257,0.27604,3624.3,3624.0,3.2078]
[1735931796446,0.27603,3624.4,3624.1,1.0606]
[1735931796645,0.27604,3624.3,3624.2,1.0049]
[1735931797152,1.169,3624.5,3624.2,1.0049]
[1735931797452,0.27603,3624.4,3624.2,1.0049]
[1735931797650,1.169,3624.5,3624.2,1.0049]
[1735931797852,0.27603,3624.4,3624.2,1.0049]
[1735931798150,0.27604,3624.3,3624.2,1.0049]
[1735931798346,0.27603,3624.4,3624.2,1.0049]
[1735931798654,1.44504,3624.3,3624.2,1.0049]
[1735931799055,0.27606,3624.1,3623.8,6.41238113]
[1735931799852,2.25,3624.3,3623.8,6.41238113]
[1735931800053,0.27606,3624.1,3623.7,3.1175]
[1735931800853,0.27605,3624.2,3623.7,3.39358]
[1735931801055,0.27605,3624.2,3624.0,3.2078]
[1735931801752,0.27604,3624.2,3624.0,3.2078]
[1735931802153,0.27604,3624.3,3624.0,3.2078]
[1735931802355,0.27601,3624.7,3624.1,0.27605]
[1735931802655,1.44401,3624.7,3624.5,3.2078]
[1735931802853,1.44401,3624.7,3624.6,2.039]
[1735931803048,40.8,3625.0,3624.6,2.039]
[1735931803255,0.27599,3625.0,3624.6,2.039]
[1735931804057,0.27598,3625.0,3624.6,2.039]
[1735931804456,3.25030268,3625.1,3624.6,2.039]
[1735931804764,0.27599,3625.0,3624.6,2.039]
[1735931805061,0.27599,3624.9,3624.6,2.039]
[1735931805258,0.27599,3625.0,3624.6,2.039]
[1735931805661,3.25030268,3625.1,3624.6,2.039]
[1735931805855,0.27599,3624.9,3624.6,2.039]
[1735931806157,0.27598,3625.1,3624.6,2.31501]
[1735931806362,2.08230268,3625.1,3624.6,2.039]
[1735931806562,0.276,3624.8,3624.6,2.039]
[1735931807661,0.276,3624.7,3624.6,2.039]
[1735931807963,0.27603,3624.4,3624.3,7.43698113]
[1735931808161,1.168,3624.4,3624.3,7.43698113]
[1735931808353,1.44403,3624.4,3624.3,1.0246]
[1735931809163,40.8,3624.7,3624.3,1.0246]
[1735931809468,1.44399,3624.6,3624.4,3.2078]
[1735931809668,1.168,3624.6,3624.4,3.2078]
[1735931810058,1.168,3624.8,3624.4,3.48379]
[1735931810268,1.168,3624.8,3624.5,0.27599]
[1735931811166,1.168,3624.8,3624.4,3.2078]
[1735931811466,1.168,3624.8,3624.4,3.4838]
[1735931811669,0.27598,3624.7,3624.5,4.27815349]
[1735931812364,3.248037,3626.0,3624.5,11.36045617]
[1735931812565,3.523917,3626.0,3625.9,3.2078]
[1735931812768,3.248037,3626.0,3625.9,3.2078]
[1735931812975,2.8031924,3626.4,3625.9,10.29010268]
[1735931813168,2.8031924,3626.4,3625.0,1.37977]
[1735931813169,8.64349477,3627.3,3626.3,3.2078]
[1735931813370,7.98482995,3626.3,3624.6,4.27815349]
[1735931813677,2.35828268,3624.7,3624.6,4.27815349]
[1735931813971,3.57628268,3624.7,3624.6,0.14238284]
[1735931814273,3.30030268,3624.7,3624.2,3.2078]
[1735931814776,0.27601,3624.3,3624.2,3.2078]
[1735931814977,2.08230268,3624.7,3623.8,3.2078]
[1735931815277,2.08230268,3624.2,3623.8,3.2078]
[1735931815469,2.08230268,3624.2,3623.8,11.77187563]
[1735931815470,0.27603,3624.1,3623.8,11.77187563]
[1735931815670,2.08230268,3624.2,3623.8,11.77187563]
[1735931815979,0.27603,3624.0,3623.8,11.77187563]
[1735931816172,2.08230268,3624.2,3623.8,11.77187563]
[1735931816474,0.27604,3623.9,3623.8,11.77187563]
[1735931816875,0.27604,3623.9,3623.8,3.2078]
[1735931818374,0.27604,3623.9,3623.8,14.71968489]
[1735931820573,2.35834268,3623.9,3623.8,14.71968489]
[1735931820976,2.35834268,3623.9,3623.8,8.29769788]
[1735931823389,2.35834268,3623.9,3623.8,3.34628072]
[1735931823880,2.08230268,3623.9,3623.5,6.42417602]
[1735931824082,5.56616268,3623.6,3623.5,6.42417602]
[1735931824384,2.35836268,3623.6,3623.5,6.42417602]
[1735931825084,0.27608,3623.4,3623.3,6.42417602]
[1735931826785,1.35778,3623.4,3623.3,6.42417602]
[1735931827486,1.49408,3623.4,3623.3,6.42417602]
[1735931827892,0.27608,3623.3,3623.2,8.56407563]
[1735931830093,2.35838268,3623.3,3623.2,8.56407563]
[1735931831882,2.08230268,3623.3,3623.1,8.56407563]
[1735931832186,0.27609,3623.2,3623.1,8.56407563]
[1735931832484,2.08230268,3623.3,3623.1,8.56407563]
[1735931832684,1.218,3623.3,3623.2,3.2078]
[1735931832891,1.49408,3623.3,3623.2,4.2022]
[1735931833489,1.49408,3623.3,3623.2,3.2078]
[1735931833792,1.218,3623.3,3623.2,3.2078]
[1735931833978,1.49408,3623.3,3623.2,3.2078]
[1735931835387,3.57638268,3623.3,3623.2,3.2078]
[1735931836185,0.27609,3623.2,3623.1,8.56407563]
[1735931836389,2.1149,3623.5,3623.3,0.27608]
[1735931836584,1.218,3623.5,3623.4,3.2078]
[1735931836886,2.35837268,3623.6,3623.4,3.2078]
[1735931837079,3.30030268,3623.6,3623.4,3.2078]
[1735931837280,3.57636268,3623.6,3623.4,3.2078]
[1735931837682,0.27607,3623.5,3623.4,3.2078]
[1735931837990,2.35837268,3623.6,3623.4,3.2078]
[1735931838188,40.8,3623.8,3623.4,3.2078]
[1735931838390,0.27602,3624.2,3623.8,0.27604]
[1735931838593,0.27602,3624.2,3624.1,3.2078]
[1735931838909,2.35832268,3624.2,3624.1,3.2078]
[1735931840591,2.35832268,3624.2,3624.0,6.42286493]
[1735931840592,0.27602,3624.1,3624.0,6.42286493]
[1735931841891,0.27602,3624.1,3623.8,6.42286493]
[1735931842196,2.08230268,3623.9,3623.8,6.42286493]
[1735931842792,2.08230268,3623.9,3623.8,6.69891493]
[1735931842985,2.08230268,3623.9,3623.8,6.42286493]
[1735931843190,2.08230268,3623.9,3623.8,0.27605]
[1735931844098,2.08230268,3623.9,3623.8,13.84422973]
[1735931844795,1.47203,3624.2,3623.9,0.27604]
[1735931844990,1.47202,3624.2,3624.1,3.2078]
[1735931845390,1.196,3624.2,3624.1,3.2078]
[1735931845996,1.47202,3624.2,3624.1,3.2078]
[1735931846196,4.40982268,3624.3,3624.1,3.2078]
[1735931846397,5.32980268,3624.3,3624.1,3.2078]
[1735931846598,0.27602,3624.2,3624.1,3.2078]
[1735931847197,3.2475,3624.3,3624.2,11.43145834]
[1735931848293,3.52351,3624.3,3624.2,5.0041041]
[1735931848496,0.27601,3624.4,3624.2,5.0041041]
[1735931848698,4.16590268,3624.6,3624.2,5.0041041]
[1735931848895,0.27601,3624.3,3624.2,5.0041041]
[1735931849095,0.27601,3624.4,3624.2,5.0041041]
[1735931849295,1.196,3624.5,3624.2,5.0041041]
[1735931849490,0.27601,3624.4,3624.2,5.0041041]
[1735931849894,0.27601,3624.4,3624.3,5.0041041]
[1735931850899,0.27598,3624.8,3624.4,0.276]
[1735931851100,0.27598,3624.8,3624.5,3.2078]
[1735931851397,0.27599,3624.7,3624.5,3.2078]
[1735931851600,3.27830268,3624.9,3624.5,3.2078]
[1735931851991,3.55427268,3624.9,3624.5,3.4838]
[1735931852191,0.27598,3624.8,3624.5,3.2078]
[1735931852392,0.27598,3624.7,3624.5,3.2078]
[1735931853194,3.27830268,3624.9,3624.7,6.42735424]
[1735931853397,0.27598,3624.8,3624.7,6.42735424]
[1735931855105,0.27598,3624.8,3624.7,11.41609041]
[1735931857904,3.55327268,3624.9,3624.7,11.41609041]
[1735931858206,0.27597,3624.9,3624.7,11.41609041]
[1735931858506,1.195,3625.0,3624.7,11.41609041]
[1735931858710,0.27598,3624.8,3624.7,11.41609041]
[1735931858910,1.195,3625.0,3624.7,11.41609041]
[1735931859112,1.195,3625.0,3624.6,6.70334424]
[1735931859304,0.27598,3624.8,3624.6,6.70334424]
[1735931859609,0.27598,3624.7,3624.6,6.42735424]
[1735931859810,1.195,3625.0,3624.6,6.42735424]
[1735931860007,0.27598,3624.7,3624.6,6.42735424]
[1735931860210,0.27598,3624.7,3624.5,12.04787563]
[1735931860403,1.195,3625.0,3624.5,12.04787563]
[1735931860709,0.27599,3624.7,3624.5,12.04787563]
[1735931861014,0.27599,3624.6,3624.5,11.77187563]
[1735931861212,1.30149,3624.6,3624.5,11.77187563]
[1735931861407,1.30149,3624.6,3624.5,3.2078]
[1735931861604,1.30149,3624.6,3624.5,3.4838]
[1735931861809,1.30149,3624.6,3624.5,3.2078]
[1735931862911,1.30149,3624.6,3624.5,14.58821309]
[1735931864006,1.30149,3624.6,3624.5,14.86421309]
[1735931864409,1.30149,3624.6,3624.5,8.44327265]
[1735931864610,1.30149,3624.6,3624.5,8.16727265]
[1735931865110,3.38379268,3624.6,3624.5,8.16727265]
[1735931865410,1.30149,3624.6,3624.5,8.16727265]
[1735931866726,0.27599,3624.6,3624.5,8.16727265]
[1735931870017,0.27599,3624.6,3624.5,3.2078]
[1735931877926,0.27599,3624.6,3624.5,8.14312105]
[1735931879425,0.27599,3624.7,3624.5,8.14312105]
[1735931879821,2.2217,3624.8,3624.5,8.14312105]
[1735931880517,0.27599,3624.6,3624.5,8.14312105]
[1735931881319,0.27599,3624.6,3624.5,3.2078]
[1735931881927,0.27599,3624.7,3624.5,3.2078]
[1735931882119,2.2217,3624.8,3624.6,0.27599]
[1735931882315,2.2217,3624.8,3624.7,0.27598]
[1735931882523,2.2217,3624.8,3624.6,1.30959]
[1735931882718,2.2217,3624.8,3624.6,1.0336]
[1735931882925,1.0527,3624.8,3624.7,0.27598]
[1735931883125,1.0527,3624.8,3624.6,1.30959]
[1735931883335,1.0527,3624.8,3624.7,0.27598]
[1735931884228,2.16652477,3625.5,3624.6,1.0336]
[1735931884423,0.27595,3625.1,3625.0,3.2078]
[1735931884623,0.27598,3624.8,3624.7,14.8174431]
[1735931884831,2.35828268,3624.8,3624.7,14.8174431]
[1735931885227,0.27598,3624.8,3624.7,14.8174431]
[1735931887334,1.44497,3624.9,3624.7,14.8174431]
[1735931887530,1.44497,3624.9,3624.7,15.0934231]
[1735931887727,1.44497,3624.9,3624.7,16.1442231]
[1735931888031,1.44497,3624.9,3624.7,15.8682431]
[1735931888227,0.27597,3624.9,3624.7,15.8682431]
[1735931888529,0.27598,3624.8,3624.7,15.8682431]
[1735931888725,0.27598,3624.8,3624.7,14.8174431]
[1735931889530,0.27598,3624.8,3624.7,25.54201214]
[1735931891829,0.27597,3624.9,3624.7,25.54201214]
[1735931892030,0.27597,3624.9,3624.7,25.81799214]
[1735931892331,0.27597,3624.9,3624.7,15.0934231]
[1735931892731,0.27598,3624.8,3624.7,14.8174431]
[1735931895029,0.27598,3624.8,3624.7,13.52588089]
[1735931896635,0.27598,3624.8,3624.7,4.9391477]
[1735931902442,1.2816076,3624.8,3624.7,4.9391477]
[1735931902638,2.2872352,3624.8,3624.7,4.9391477]
[1735931903140,4.4894076,3624.8,3624.7,1.5595477]
[1735931903339,5.4950352,3624.8,3624.7,1.5595477]
[1735931903542,5.4950352,3624.8,3624.6,6.72138089]
[1735931903543,5.2190552,3624.8,3624.6,6.72138089]
[1735931903742,1.31478,3624.7,3624.6,6.72138089]
[1735931904347,3.39502473,3624.7,3624.6,6.72138089]
[1735931904847,3.39502473,3624.7,3624.2,13.93717719]
[1735931904848,3.11904473,3624.7,3624.3,6.44514464]
[1735931905039,2.35625473,3624.4,3624.3,8.56174464]
[1735931905543,1.0388,3624.7,3624.4,0.276]
[1735931905738,3.24646513,3624.8,3624.6,3.2078]
[1735931906456,3.24646513,3624.8,3624.6,3.48379]
[1735931906457,2.17098344,3624.8,3624.6,3.48379]
[1735931906952,2.17098344,3624.8,3624.6,3.2078]
[1735931907954,0.27598,3624.8,3624.7,9.18155933]
[1735931909255,3.24924473,3625.0,3624.6,3.2078]
[1735931909554,2.35622473,3624.7,3624.6,3.2078]
[1735931910854,2.08024473,3624.7,3624.6,3.2078]
[1735931911053,2.35622473,3624.7,3624.6,3.2078]
[1735931911454,2.08024473,3624.7,3624.3,13.88477719]
[1735931911653,0.27601,3624.4,3624.3,13.88477719]
[1735931912049,41.07601,3624.4,3624.3,13.88477719]
[1735931912355,40.8,3624.4,3624.3,3.1554]
[1735931912658,41.07601,3624.4,3624.3,3.1554]
[1735931912860,40.8,3624.4,3624.3,3.1554]
[1735931913154,41.07601,3624.4,3624.3,3.1554]
[1735931913344,0.276,3624.5,3624.3,3.1554]
[1735931914558,2.17098344,3624.9,3624.3,3.1554]
[1735931914758,2.44694344,3625.0,3624.8,3.2078]
[1735931914953,2.44694344,3625.0,3624.9,2.1465]
[1735931915157,2.44694344,3625.0,3624.9,3.2398]
[1735931916051,0.27596,3625.0,3624.9,3.2398]
[1735931916758,0.27596,3625.0,3624.9,2.1465]
[1735931918149,1.44496,3625.0,3624.9,2.1465]
[1735931918348,0.27596,3625.0,3624.9,2.1465]
[1735931918555,1.44496,3625.0,3624.9,2.1465]
[1735931919259,1.169,3625.0,3624.6,10.73627538]
[1735931919460,2.35622473,3624.7,3624.6,10.73627538]
[1735931919857,3.52522473,3624.7,3624.6,10.73627538]
[1735931920459,3.24924473,3624.7,3624.5,6.44162006]
[1735931920657,0.27599,3624.6,3624.5,6.44162006]
[1735931921862,0.27601,3624.5,3624.3,2.1113]
[1735931922663,4.25122817,3625.0,3624.3,2.1113]
[1735931922865,4.25122817,3625.0,3624.6,3.2078]
[1735931922866,0.27599,3624.7,3624.6,3.2078]
[1735931923061,0.27598,3624.8,3624.6,3.2078]
[1735931923255,1.169,3624.9,3624.7,1.09]
[1735931923460,1.44497,3624.9,3624.7,1.09]
[1735931923663,1.169,3624.9,3624.8,1.1188]
[1735931924666,1.169,3624.9,3624.8,5.66989743]
[1735931925170,1.44497,3624.9,3624.8,5.66989743]
[1735931928560,1.44497,3624.9,3624.8,12.10894469]
[1735931930363,2.4504624,3624.9,3624.8,12.10894469]
[1735931931570,2.4504624,3624.9,3624.8,5.66989743]
[1735931933367,2.4504624,3624.9,3624.8,4.55109743]
[1735931934272,1.2814624,3624.9,3624.8,9.21133392]
[1735931934572,2.4494624,3624.9,3624.8,9.21133392]
[1735931934773,1.44397,3624.9,3624.8,9.21133392]
[1735931934974,44.2549548,3624.9,3624.8,9.21133392]
[1735931935178,49.2549548,3624.9,3624.8,8.39770064]
[1735931935373,0.27599,3624.7,3624.6,7.99021532]
[1735931935575,5.4947748,3624.7,3624.6,7.99021532]
[1735931935775,10.2187848,3624.7,3624.5,4.29836871]
[1735931935972,3.3284748,3624.6,3624.5,4.29836871]
[1735931936378,8.3284748,3624.6,3624.5,2.58406871]
[1735931937074,8.46668436,3624.6,3624.4,6.44755307]
[1735931937274,0.27605,3623.9,3623.8,4.2762]
[1735931937476,0.27605,3623.9,3623.8,1.0684]
[1735931937477,1.44405,3623.9,3623.8,1.0684]
[1735931938380,44.32488828,3623.9,3623.8,1.0684]
[1735931938782,46.49521838,3623.9,3623.8,1.0684]
[1735931939183,0.27606,3623.7,3623.6,1.1245]
[1735931940083,4.25116838,3623.9,3623.6,1.1245]
[1735931940385,2.08083828,3623.9,3623.6,1.1245]
[1735931940579,2.35688828,3623.9,3623.8,3.2078]
[1735931940784,3.25549515,3624.2,3623.8,5.28863828]
[1735931940785,0.78241353,3624.2,3623.8,5.28863828]
[1735931940985,5.41736818,3624.7,3624.6,0.27599]
[1735931941180,5.41736818,3624.7,3624.6,3.2078]
[1735931941978,0.27598,3624.8,3624.6,12.08639337]
[1735931942179,2.35681828,3624.9,3624.6,12.08639337]
[1735931942378,2.08083828,3624.9,3624.6,12.08639337]
[1735931942683,2.35680828,3624.9,3624.6,12.08639337]